lending/lending_fUSD_20250808
["ID","MTS","AMOUNT","RATE_DAILY","PERIOD"]
[378004747,1754665006731,215.43,0.00013699,2]
[378004748,1754665006845,2000.0,0.00018,2]
[378004749,1754665018988,-150.35,0.00018199,2]
[378004750,1754665019010,-151.65,0.00018217,2]
[378004751,1754665019032,-150.86,0.00018293,2]
[378004752,1754665019057,-72.14,0.00018293,2]
[378004756,1754665134285,150.0,0.00017842,2]
[378004757,1754665155882,520.0,0.00017293,2]
[378004758,1754665156931,150.0,0.000127,2]
[378004759,1754665157291,150.0,0.0001388,2]
[378004761,1754665157860,150.0,0.0001507,2]
[378004764,1754665158674,150.0,0.0001625,2]
[378004765,1754665161661,150.0,0.0001743,2]
[378004766,1754665170943,2665.04,0.00017808,2]
[378004768,1754665194092,5014.81813883,0.00017738,2]
[378004769,1754665194114,134.27186117,0.00017738,2]
[378004770,1754665281748,3469.81,0.000177,2]
[378004771,1754665313077,175.0,0.00017685,7]
[378004775,1754665390995,159.0,0.00018,5]
[378004776,1754665466810,1000.0,0.00017683,2]
[378004777,1754665487678,255.67,0.00017655,2]
[378004778,1754665587289,426.07,0.00017676,2]
[378004779,1754665594646,1711.22,0.00017676,2]
[378004780,1754665626230,392.55,0.00015068,2]
[378004781,1754665626449,392.55,0.00016648,2]
[378004782,1754665653297,4997.45,0.00017587,2]
[378004783,1754665691985,150.0,0.000117,2]
[378004784,1754665692509,150.0,0.0001288,2]
[378004785,1754665692818,150.0,0.0001407,2]
[378004786,1754665693203,150.0,0.0001525,2]
[378004787,1754665693731,150.0,0.0001643,2]
[378004788,1754665694082,198.0,0.0001762,2]
[378004789,1754665773185,196.69,0.00017529,2]
[378004798,1754665832461,-160.36231305,0.00018084,2]
[378004799,1754665832475,-250.0,0.00018143,2]
[378004800,1754665832489,-2500.0,0.00018163,2]
[378004801,1754665832503,-152.44,0.00018184,2]
[378004802,1754665832518,-150.9,0.00018203,2]
[378004803,1754665832532,-151.3,0.00018209,2]
[378004804,1754665832547,-151.01,0.00018224,2]
[378004805,1754665832561,-392.55,0.00018228,2]
[378004806,1754665832574,-300.0,0.00018292,2]
[378004807,1754665832588,-300.0,0.00018292,2]
[378004808,1754665832601,-1200.0,0.00018292,2]
[378004809,1754665832615,-79.06,0.00018293,2]
[378004810,1754665832636,-150.64,0.00018293,2]
[378004811,1754665832649,-150.36,0.00018293,2]
[378004812,1754665832662,-152.61,0.00018293,2]
[378004813,1754665832675,-249.93935104,0.00018293,2]
[378004814,1754665832688,-152.21,0.00018293,2]
[378004815,1754665832705,-497.016,0.00018293,2]
[378004816,1754665832723,-255.67,0.00018317,2]
[378004817,1754665832737,-5107.58610526,0.00018399,2]
[378004818,1754665832748,-196.69,0.00018406,2]
[378004819,1754665832761,-181.13275381,0.00018416,2]
[378004820,1754665832776,-5107.58610519,0.00018458,2]
[378004821,1754665832787,-5199.43684444,0.00018479,2]
[378004822,1754665832799,-267.46074303,0.00018479,2]
[378004823,1754665832812,-600.0,0.00018489,2]
[378004824,1754665832831,-160.0,0.00018489,2]
[378004825,1754665832844,-500.0,0.00018489,2]
[378004826,1754665832856,-332.92191059,0.00018498,2]
[378004827,1754665832869,-254.50025626,0.00018498,2]
[378004828,1754665832882,-305.66604035,0.00018498,2]
[378004829,1754665832897,-550.0,0.00018498,2]
[378004830,1754665832916,-1147.74,0.00018498,2]
[378004831,1754665832931,-400.0,0.00018498,2]
[378004832,1754665832944,-1506.21,0.00018498,2]
[378004833,1754665832956,-400.0,0.00018499,2]
[378004834,1754665832968,-400.0,0.00018499,2]
[378004835,1754665832980,-485.3230944,0.00018499,2]
[378004836,1754665832993,-406.77,0.00018499,2]
[378004837,1754665833004,-349.49,0.00018499,2]
[378004838,1754665833016,-400.0,0.00018499,2]
[378004839,1754665833030,-633.81,0.00018499,2]
[378004840,1754665833043,-418.67,0.00018499,2]
[378004841,1754665833055,-400.0,0.00018499,2]
[378004842,1754665833067,-400.0,0.00018499,2]
[378004843,1754665833080,-327.78,0.00018499,2]
[378004844,1754665833092,-639.76,0.00018499,2]
[378004845,1754665833104,-188.41531459,0.00018499,2]
[378004846,1754665833116,-400.0,0.00018499,2]
[378004847,1754665833128,-680.27,0.00018499,2]
[378004848,1754665833143,-400.0,0.00018499,2]
[378004849,1754665833161,-1037.97,0.00018499,2]
[378004851,1754665833176,-400.0,0.00018499,2]
[378004852,1754665833189,-400.0,0.00018499,2]
[378004853,1754665833201,-400.0,0.00018499,2]
[378004854,1754665833214,-400.0,0.00018499,2]
[378004855,1754665833227,-400.0,0.00018499,2]
[378004856,1754665833239,-400.0,0.00018499,2]
[378004859,1754665833252,-400.0,0.00018499,2]
[378004861,1754665833264,-400.0,0.00018499,2]
[378004863,1754665833280,-643.63,0.00018499,2]
[378004866,1754665833293,-400.0,0.00018499,2]
[378004867,1754665833305,-400.0,0.00018499,2]
[378004868,1754665833317,-495.04,0.00018499,2]
[378004869,1754665833329,-834.26,0.00018499,2]
[378004870,1754665833341,-400.0,0.00018499,2]
[378004871,1754665833353,-400.0,0.00018499,2]
[378004872,1754665833365,-1082.64,0.00018499,2]
[378004873,1754665833377,-400.0,0.00018499,2]
[378004874,1754665833389,-400.0,0.00018499,2]
[378004875,1754665833401,-400.0,0.00018499,2]
[378004876,1754665833413,-1314.05,0.00018499,2]
[378004877,1754665833425,-400.0,0.00018499,2]
[378004878,1754665833438,-403.05708549,0.00018499,2]
[378004879,1754665833450,-400.0,0.00018499,2]
[378004880,1754665833462,-400.0,0.00018499,2]
[378004881,1754665833475,-400.0,0.00018499,2]
[378004882,1754665833487,-400.0,0.00018499,2]
[378004883,1754665833499,-400.0,0.00018499,2]
[378004884,1754665833511,-435.51,0.00018499,2]
[378004885,1754665833524,-400.0,0.00018499,2]
[378004886,1754665833536,-400.0,0.00018499,2]
[378004887,1754665833548,-1056.5,0.00018499,2]
[378004888,1754665833560,-426.02,0.00018499,2]
[378004889,1754665833572,-400.0,0.00018499,2]
[378004890,1754665833584,-400.0,0.00018499,2]
[378004891,1754665833596,-400.0,0.00018499,2]
[378004892,1754665833609,-506.54,0.00018499,2]
[378004893,1754665833620,-640.77,0.00018499,2]
[378004894,1754665833635,-409.28,0.00018499,2]
[378004895,1754665833647,-605.96,0.00018499,2]
[378004896,1754665833659,-400.77008182,0.00018499,2]
[378004897,1754665833671,-426.37,0.00018499,2]
[378004898,1754665833684,-400.0,0.00018499,2]
[378004900,1754665833696,-400.0,0.00018499,2]
[378004903,1754665833708,-400.0,0.00018499,2]
[378004905,1754665833721,-1344.72,0.00018499,2]
[378004907,1754665833732,-400.0,0.00018499,2]
[378004910,1754665833745,-400.0,0.00018499,2]
[378004912,1754665833758,-291.63701656,0.00018499,2]
[378004914,1754665833770,-503.87,0.00018499,2]
[378004916,1754665833783,-400.0,0.00018499,2]
[378004919,1754665833795,-400.0,0.00018499,2]
[378004921,1754665833808,-400.0,0.00018499,2]
[378004923,1754665833821,-422.51,0.00018499,2]
[378004925,1754665833833,-400.0,0.00018499,2]
[378004928,1754665833845,-741.27,0.00018499,2]
[378004930,1754665833857,-400.0,0.00018499,2]
[378004932,1754665833869,-419.32,0.00018499,2]
[378004935,1754665833881,-400.0,0.00018499,2]
[378004937,1754665833893,-1048.94,0.00018499,2]
[378004939,1754665833905,-400.0,0.00018499,2]
[378004941,1754665833917,-400.0,0.00018499,2]
[378004944,1754665833930,-421.24,0.00018499,2]
[378004946,1754665833942,-400.24,0.00018499,2]
[378004948,1754665833954,-636.47,0.00018499,2]
[378004951,1754665833967,-400.0,0.00018499,2]
[378004953,1754665833979,-1559.71,0.00018499,2]
[378004955,1754665833991,-401.64039174,0.00018499,2]
[378004958,1754665834003,-400.0,0.00018499,2]
[378004960,1754665834017,-400.0,0.00018499,2]
[378004962,1754665834029,-400.0,0.00018499,2]
[378004964,1754665834042,-488.29,0.00018499,2]
[378004967,1754665834053,-582.23,0.00018499,2]
[378004969,1754665834065,-400.0,0.00018499,2]
[378004971,1754665834077,-1131.21,0.00018499,2]
[378004973,1754665834089,-400.0,0.00018499,2]
[378004976,1754665834101,-400.0,0.00018499,2]
[378004978,1754665834113,-400.0,0.00018499,2]
[378004980,1754665834125,-400.0,0.00018499,2]
[378004983,1754665834137,-498.79,0.00018499,2]
[378004985,1754665834149,-412.19,0.00018499,2]
[378004987,1754665834161,-400.0,0.00018499,2]
[378004990,1754665834174,-1493.88,0.00018499,2]
[378004992,1754665834187,-478.7,0.00018499,2]
[378004994,1754665834198,-400.0,0.00018499,2]
[378004996,1754665834210,-400.0,0.00018499,2]
[378004999,1754665834221,-400.0,0.00018499,2]
[378005001,1754665834232,-400.0,0.00018499,2]
[378005003,1754665834244,-400.0,0.00018499,2]
[378005005,1754665834255,-400.0,0.00018499,2]
[378005008,1754665834267,-878.26,0.00018499,2]
[378005010,1754665834280,-852.63,0.00018499,2]
[378005012,1754665834292,-400.0,0.00018499,2]
[378005013,1754665834304,-400.0,0.00018499,2]
[378005015,1754665834315,-400.0,0.00018499,2]
[378005018,1754665834327,-400.0,0.00018499,2]
[378005020,1754665834338,-1151.07,0.00018499,2]
[378005022,1754665834350,-400.0,0.00018499,2]
[378005024,1754665834361,-400.0,0.00018499,2]
[378005026,1754665834373,-400.0,0.00018499,2]
[378005029,1754665834384,-400.0,0.00018499,2]
[378005031,1754665834395,-400.0,0.00018499,2]
[378005033,1754665834407,-400.0,0.00018499,2]
[378005035,1754665834417,-400.0,0.00018499,2]
[378005038,1754665834429,-400.0,0.00018499,2]
[378005040,1754665834441,-400.0,0.00018499,2]
[378005042,1754665834452,-1189.03,0.00018499,2]
[378005044,1754665834463,-400.0,0.00018499,2]
[378005046,1754665834474,-400.0,0.00018499,2]
[378005048,1754665834486,-400.0,0.00018499,2]
[378005051,1754665834497,-400.0,0.00018499,2]
[378005053,1754665834508,-400.0,0.00018499,2]
[378005055,1754665834521,-400.0,0.00018499,2]
[378005057,1754665834533,-400.0,0.00018499,2]
[378005060,1754665834544,-400.0,0.00018499,2]
[378005062,1754665834555,-2092.47,0.00018499,2]
[378005064,1754665834567,-400.0,0.00018499,2]
[378005066,1754665834578,-400.0,0.00018499,2]
[378005068,1754665834590,-400.0,0.00018499,2]
[378005071,1754665834601,-400.0,0.00018499,2]
[378005073,1754665834613,-400.0,0.00018499,2]
[378005075,1754665834624,-496.27,0.00018499,2]
[378005077,1754665834639,-400.0,0.00018499,2]
[378005079,1754665834651,-454.2,0.00018499,2]
[378005082,1754665834663,-400.0,0.00018499,2]
[378005084,1754665834675,-1142.29,0.00018499,2]
[378005086,1754665834686,-670.13,0.00018499,2]
[378005088,1754665834699,-2302.35,0.00018499,2]
[378005090,1754665834710,-662.54,0.00018499,2]
[378005092,1754665834721,-329.37767764,0.00018499,2]
[378005095,1754665834733,-400.0,0.00018499,2]
[378005097,1754665834744,-400.0,0.00018499,2]
[378005098,1754665834756,-400.0,0.00018499,2]
[378005099,1754665834767,-400.0,0.00018499,2]
[378005100,1754665834780,-400.0,0.00018499,2]
[378005101,1754665834793,-400.0,0.00018499,2]
[378005102,1754665834804,-605.62,0.00018499,2]
[378005103,1754665834815,-400.0,0.00018499,2]
[378005104,1754665834827,-523.74,0.00018499,2]
[378005105,1754665834838,-432.65,0.00018499,2]
[378005106,1754665834850,-699.18,0.00018499,2]
[378005107,1754665834861,-454.4,0.00018499,2]
[378005108,1754665834872,-400.0,0.00018499,2]
[378005109,1754665834884,-400.0,0.00018499,2]
[378005110,1754665834895,-460.62,0.00018499,2]
[378005111,1754665834907,-400.0,0.00018499,2]
[378005112,1754665834919,-400.0,0.00018499,2]
[378005113,1754665834930,-400.0,0.00018499,2]
[378005114,1754665834942,-400.0,0.00018499,2]
[378005115,1754665834953,-1000.0,0.00018499,2]
[378005116,1754665834965,-1003.64,0.00018499,2]
[378005117,1754665834976,-450.88,0.00018499,2]
[378005118,1754665834987,-475.98,0.00018499,2]
[378005119,1754665834998,-400.0,0.00018499,2]
[378005120,1754665835009,-428.3,0.00018499,2]
[378005121,1754665835023,-485.3,0.00018499,2]
[378005122,1754665835034,-1113.86,0.00018499,2]
[378005123,1754665835046,-833.67,0.00018499,2]
[378005124,1754665835057,-400.92,0.00018499,2]
[378005125,1754665835069,-400.0,0.00018499,2]
[378005126,1754665835081,-400.0,0.00018499,2]
[378005127,1754665835092,-400.0,0.00018499,2]
[378005128,1754665835101,-400.0,0.00018499,2]
[378005129,1754665835111,-826.02,0.00018499,2]
[378005130,1754665835120,-490.97,0.00018499,2]
[378005131,1754665835129,-400.0,0.00018499,2]
[378005132,1754665835139,-500.0,0.00018499,2]
[378005133,1754665835148,-684.28,0.00018499,2]
[378005134,1754665835157,-397.1,0.00018499,2]
[378005135,1754665835167,-1125.99,0.00018499,2]
[378005136,1754665835177,-414.74,0.00018499,2]
[378005137,1754665835186,-576.92,0.00018499,2]
[378005138,1754665835195,-504.74,0.00018499,2]
[378005139,1754665835207,-400.0,0.00018499,2]
[378005140,1754665835217,-794.31,0.00018499,2]
[378005141,1754665835227,-458.40559122,0.00018499,2]
[378005142,1754665835236,-1644.44,0.00018499,2]
[378005143,1754665835695,-400.0,0.00018499,2]
[378005144,1754665835724,-400.0,0.00018499,2]
[378005145,1754665835757,-466.96,0.00018499,2]
[378005146,1754665835773,-400.0,0.00018499,2]
[378005147,1754665835782,-484.59,0.00018499,2]
[378005148,1754665835792,-400.0,0.00018499,2]
[378005149,1754665835802,-400.0,0.00018499,2]
[378005150,1754665835811,-1479.1,0.00018499,2]
[378005151,1754665835820,-400.0,0.00018499,2]
[378005152,1754665835830,-400.0,0.00018499,2]
[378005153,1754665835840,-1392.26,0.00018499,2]
[378005154,1754665835849,-487.25,0.00018499,2]
[378005155,1754665835859,-243.10868329,0.00018499,2]
[378005156,1754665835868,-400.0,0.00018499,2]
[378005157,1754665835877,-412.71769291,0.00018499,2]
[378005158,1754665835887,-827.27,0.00018499,2]
[378005159,1754665835897,-3663.05,0.00018499,2]
[378005160,1754665835906,-646.39031307,0.00018499,2]
[378005161,1754665835932,-384.42606901,0.00018499,2]
[378005162,1754665835982,-663.49361792,0.00018499,2]
[378005163,1754665835992,-400.0,0.00018499,2]
[378005164,1754665836001,-1134.91,0.00018499,2]
[378005165,1754665836010,-311.7473952,0.00018499,2]
[378005166,1754665836518,-257.7826048,0.00018499,2]
[378005167,1754665836530,-400.0,0.00018499,2]
[378005168,1754665836539,-400.0,0.00018499,2]
[378005169,1754665836548,-1635.03,0.00018499,2]
[378005170,1754665836558,-400.0,0.00018499,2]
[378005171,1754665836567,-1604.55,0.00018499,2]
[378005172,1754665836576,-400.0,0.00018499,2]
[378005173,1754665836585,-1726.2,0.00018499,2]
[378005174,1754665836594,-185.33005564,0.00018499,2]
[378005175,1754665836606,-214.66994436,0.00018499,2]
[378005176,1754665836616,-1599.84986497,0.00018499,2]
[378005177,1754665836631,-2609.22013503,0.00018499,2]
[378005178,1754665836641,-2046.86997472,0.00018499,2]
[378005179,1754665836656,-5289.55002528,0.00018499,2]
[378005180,1754665836668,-400.0,0.00018499,2]
[378005181,1754665836676,-400.0,0.00018499,2]
[378005182,1754665836686,-474.76,0.00018499,2]
[378005183,1754665836695,-400.0,0.00018499,2]
[378005184,1754665836712,-400.0,0.00018499,2]
[378005185,1754665836721,-400.0,0.00018499,2]
[378005186,1754665836730,-1402.19,0.00018499,2]
[378005187,1754665836740,-1230.28,0.00018499,2]
[378005188,1754665836749,-2130.07,0.00018499,2]
[378005189,1754665836759,-400.0,0.00018499,2]
[378005190,1754665836768,-400.0,0.00018499,2]
[378005191,1754665836778,-400.0,0.00018499,2]
[378005192,1754665836787,-400.84743465,0.00018499,2]
[378005193,1754665836796,-400.0,0.00018499,2]
[378005194,1754665836806,-400.0,0.00018499,2]
[378005195,1754665836815,-400.0,0.00018499,2]
[378005196,1754665836825,-2025.14,0.00018499,2]
[378005197,1754665836834,-628.07,0.00018499,2]
[378005198,1754665836843,-688.33,0.00018499,2]
[378005199,1754665836853,-400.0,0.00018499,2]
[378005200,1754665836863,-400.0,0.00018499,2]
[378005201,1754665836872,-612.57,0.00018499,2]
[378005202,1754665836882,-483.07,0.00018499,2]
[378005203,1754665836891,-3210.22,0.00018499,2]
[378005204,1754665836900,-400.0,0.00018499,2]
[378005205,1754665836912,-531.47,0.00018499,2]
[378005206,1754665836922,-400.0,0.00018499,2]
[378005207,1754665836932,-5188.28,0.00018499,2]
[378005208,1754665836942,-1541.01,0.00018499,2]
[378005209,1754665836951,-5876.12,0.00018499,2]
[378005210,1754665836960,-400.0,0.00018499,2]
[378005211,1754665836970,-513.95,0.00018499,2]
[378005212,1754665836979,-400.0,0.00018499,2]
[378005213,1754665836988,-400.0,0.00018499,2]
[378005214,1754665836997,-420.86,0.00018499,2]
[378005215,1754665837006,-400.0,0.00018499,2]
[378005216,1754665837017,-4259.87,0.00018499,2]
[378005217,1754665837027,-1585.22,0.00018499,2]
[378005218,1754665837036,-400.0,0.00018499,2]
[378005219,1754665837046,-400.0,0.00018499,2]
[378005220,1754665837055,-8121.87,0.00018499,2]
[378005221,1754665837064,-400.0,0.00018499,2]
[378005222,1754665837073,-400.0,0.00018499,2]
[378005223,1754665837082,-1121.8,0.00018499,2]
[378005224,1754665837091,-1476.09,0.00018499,2]
[378005225,1754665837100,-644.13,0.00018499,2]
[378005226,1754665837110,-575.11,0.00018499,2]
[378005227,1754665837119,-6057.34,0.00018499,2]
[378005228,1754665837128,-619.05,0.00018499,2]
[378005229,1754665837138,-400.0,0.00018499,2]
[378005230,1754665837147,-528.46,0.00018499,2]
[378005231,1754665837156,-6693.11,0.00018499,2]
[378005232,1754665837166,-1345.7,0.00018499,2]
[378005233,1754665837175,-400.0,0.00018499,2]
[378005234,1754665837185,-1709.16,0.00018499,2]
[378005235,1754665837194,-1291.02,0.00018499,2]
[378005236,1754665837203,-1813.43,0.00018499,2]
[378005237,1754665837212,-422.85,0.00018499,2]
[378005238,1754665837222,-400.0,0.00018499,2]
[378005239,1754665837232,-400.0,0.00018499,2]
[378005240,1754665837241,-2167.73,0.00018499,2]
[378005241,1754665837250,-400.0,0.00018499,2]
[378005242,1754665837260,-652.0,0.00018499,2]
[378005243,1754665837269,-400.0,0.00018499,2]
[378005244,1754665837279,-400.0,0.00018499,2]
[378005245,1754665837288,-1469.15,0.00018499,2]
[378005246,1754665837297,-646.71,0.00018499,2]
[378005247,1754665837306,-563.16,0.00018499,2]
[378005248,1754665837315,-1310.0,0.00018499,2]
[378005249,1754665837324,-824.19,0.00018499,2]
[378005250,1754665837333,-609.49,0.00018499,2]
[378005251,1754665837342,-400.0,0.00018499,2]
[378005252,1754665837351,-9554.86,0.00018499,2]
[378005253,1754665837360,-1273.12,0.00018499,2]
[378005254,1754665837369,-1930.11,0.00018499,2]
[378005255,1754665837379,-400.0,0.00018499,2]
[378005256,1754665837388,-4202.88,0.00018499,2]
[378005257,1754665837397,-400.0,0.00018499,2]
[378005258,1754665837406,-469.3,0.00018499,2]
[378005259,1754665837415,-6401.52,0.00018499,2]
[378005260,1754665837424,-400.0,0.00018499,2]
[378005261,1754665837434,-400.0,0.00018499,2]
[378005262,1754665837443,-400.0,0.00018499,2]
[378005263,1754665837453,-643.68,0.00018499,2]
[378005264,1754665837462,-400.0,0.00018499,2]
[378005265,1754665837472,-1810.41,0.00018499,2]
[378005266,1754665837482,-400.0,0.00018499,2]
[378005267,1754665837491,-1108.42,0.00018499,2]
[378005268,1754665837501,-569.88,0.00018499,2]
[378005269,1754665837511,-400.0,0.00018499,2]
[378005270,1754665837523,-400.0,0.00018499,2]
[378005271,1754665837534,-828.43,0.00018499,2]
[378005272,1754665837543,-400.0,0.00018499,2]
[378005273,1754665837552,-5768.73,0.00018499,2]
[378005274,1754665837562,-498.93,0.00018499,2]
[378005275,1754665837571,-4400.41,0.00018499,2]
[378005276,1754665837580,-603.11,0.00018499,2]
[378005277,1754665837590,-5374.73,0.00018499,2]
[378005278,1754665837599,-400.0,0.00018499,2]
[378005279,1754665837608,-817.89,0.00018499,2]
[378005280,1754665837618,-5381.91,0.00018499,2]
[378005281,1754665837630,-3846.97,0.00018499,2]
[378005282,1754665837639,-514.29,0.00018499,2]
[378005283,1754665837648,-400.0,0.00018499,2]
[378005284,1754665837657,-1228.87,0.00018499,2]
[378005285,1754665837667,-400.0,0.00018499,2]
[378005286,1754665837677,-400.0,0.00018499,2]
[378005287,1754665837686,-4234.54,0.00018499,2]
[378005288,1754665837695,-400.0,0.00018499,2]
[378005289,1754665837704,-887.14,0.00018499,2]
[378005290,1754665837714,-400.0,0.00018499,2]
[378005291,1754665837723,-7852.22716073,0.000185,2]
[378005292,1754665837736,-24287.36598753,0.000185,2]
[378005293,1754665837759,-1384.65105232,0.000185,2]
[378005294,1754665837770,-11650.0,0.000185,2]
[378005295,1754665837782,-118682.5257003,0.000185,2]
[378005296,1754665837805,-82336.21106821,0.000185,2]
[378005297,1754665837814,-77260.0,0.000185,2]
[378005298,1754665837823,-5107.58610519,0.00018516,2]
[378005299,1754665837833,-1753.78936425,0.00018534,2]
[378005300,1754665837842,-500.0,0.00018544,2]
[378005301,1754665837852,-5107.58610519,0.00018575,2]
[378005302,1754665837861,-500.0,0.00018599,2]
[378005303,1754665837871,-5107.58610519,0.00018634,2]
[378005304,1754665837879,-179.01,0.00018647,2]
[378005305,1754665837889,-150.27,0.00018653,2]
[378005306,1754665837898,-150.23,0.00018653,2]
[378005307,1754665837907,-151.22,0.00018653,2]
[378005308,1754665837917,-152.8,0.00018653,2]
[378005309,1754665837926,-151.49,0.00018653,2]
[378005310,1754665837936,-150.77,0.00018653,2]
[378005311,1754665837946,-152.17,0.00018653,2]
[378005312,1754665837955,-151.03,0.00018653,2]
[378005314,1754665837965,-152.17,0.00018653,2]
[378005315,1754665837974,-152.97,0.00018653,2]
[378005316,1754665837984,-152.71,0.00018653,2]
[378005317,1754665837993,-152.71,0.00018654,2]
[378005318,1754665838002,-152.53,0.00018654,2]
[378005319,1754665838011,-151.88,0.00018654,2]
[378005320,1754665838021,-152.12,0.00018654,2]
[378005321,1754665838031,-152.57,0.00018654,2]
[378005322,1754665838040,-150.65,0.00018654,2]
[378005323,1754665838050,-600.0,0.00018658,2]
[378005324,1754665838059,-229.71,0.00018658,2]
[378005325,1754665838069,-181.13275379,0.00018672,2]
[378005326,1754665838078,-5107.58610519,0.00018692,2]
[378005327,1754665838087,-5107.58610519,0.00018751,2]
[378005328,1754665838097,-192.99,0.00018752,2]
[378005329,1754665838108,-400.0,0.00018753,2]
[378005330,1754665838119,-400.0,0.00018753,2]
[378005331,1754665838129,-495.89,0.00018753,2]
[378005332,1754665838138,-527.16850354,0.00018753,2]
[378005333,1754665838148,-400.0,0.00018753,2]
[378005334,1754665838157,-400.0,0.00018753,2]
[378005335,1754665838166,-400.0,0.00018753,2]
[378005336,1754665838176,-400.0,0.00018753,2]
[378005337,1754665838186,-458.95,0.00018753,2]
[378005338,1754665838196,-400.0,0.00018753,2]
[378005339,1754665838206,-400.0,0.00018753,2]
[378005340,1754665838216,-400.0,0.00018753,2]
[378005341,1754665838227,-565.26,0.00018753,2]
[378005342,1754665838237,-400.0,0.00018753,2]
[378005343,1754665838247,-400.0,0.00018753,2]
[378005344,1754665838259,-432.45,0.00018753,2]
[378005345,1754665838268,-292.92,0.00018753,2]
[378005346,1754665838279,-400.0,0.00018753,2]
[378005347,1754665838288,-400.0,0.00018753,2]
[378005348,1754665838298,-400.0,0.00018753,2]
[378005349,1754665838307,-465.44,0.00018753,2]
[378005350,1754665838317,-201.57603642,0.00018753,2]
[378005351,1754665838327,-400.0,0.00018753,2]
[378005352,1754665838336,-400.0,0.00018753,2]
[378005353,1754665838346,-400.0,0.00018753,2]
[378005354,1754665838355,-400.0,0.00018753,2]
[378005355,1754665838367,-476.53,0.00018753,2]
[378005356,1754665838380,-400.0,0.00018753,2]
[378005357,1754665838393,-593.67,0.00018753,2]
[378005358,1754665838402,-400.0,0.00018753,2]
[378005359,1754665838412,-400.0,0.00018753,2]
[378005360,1754665838422,-497.06,0.00018753,2]
[378005361,1754665838432,-400.0,0.00018753,2]
[378005363,1754665838441,-504.76,0.00018753,2]
[378005365,1754665838451,-400.0,0.00018753,2]
[378005366,1754665838461,-400.0,0.00018753,2]
[378005367,1754665838470,-565.2,0.00018753,2]
[378005368,1754665838479,-400.0,0.00018753,2]
[378005369,1754665838488,-400.0,0.00018753,2]
[378005370,1754665838497,-400.0,0.00018753,2]
[378005371,1754665838507,-400.0,0.00018753,2]
[378005372,1754665838516,-400.0,0.00018753,2]
[378005373,1754665838527,-400.0,0.00018753,2]
[378005374,1754665838536,-596.46,0.00018753,2]
[378005375,1754665838545,-400.0,0.00018753,2]
[378005376,1754665838554,-400.0,0.00018753,2]
[378005378,1754665838795,-457.11,0.00018753,2]
[378005379,1754665838812,-400.0,0.00018753,2]
[378005380,1754665838822,-428.78,0.00018753,2]
[378005381,1754665838831,-400.0,0.00018753,2]
[378005382,1754665838840,-400.0,0.00018753,2]
[378005383,1754665838851,-400.0,0.00018753,2]
[378005384,1754665838860,-1115.56,0.00018753,2]
[378005385,1754665838869,-400.0,0.00018753,2]